bitfinex/quotes_BTCUSD_20240607
["timestamp","ask_amount","ask_price","bid_price","bid_amount"]
[1717759024039,1.905,71376.0,71375.0,2.51063476]
[1717759024232,1.905,71376.0,71375.0,2.49663476]
[1717759024405,1.905,71376.0,71375.0,2.63568877]
[1717759024875,1.905,71376.0,71375.0,2.65660934]
[1717759025589,1.905,71376.0,71375.0,2.49663476]
[1717759025789,1.905,71376.0,71375.0,2.51063476]
[1717759026143,1.905,71376.0,71375.0,2.49663476]
[1717759026356,1.905,71376.0,71375.0,2.51063476]
[1717759026555,1.905,71376.0,71375.0,2.52463476]
[1717759030238,1.905,71376.0,71375.0,2.20873941]
[1717759030407,1.905,71376.0,71375.0,2.52459236]
[1717759032850,1.905,71376.0,71375.0,2.59269236]
[1717759035243,1.905,71376.0,71375.0,2.52459236]
[1717759035465,1.905,71376.0,71375.0,2.59269236]
[1717759035625,1.90267446,71376.0,71375.0,2.59269236]
[1717759035831,1.90267446,71376.0,71375.0,2.27683941]
[1717759036038,1.90267446,71376.0,71375.0,2.59269611]
[1717759036551,1.90267446,71376.0,71375.0,2.44519611]
[1717759036757,1.90267446,71376.0,71375.0,2.43976328]
[1717759036964,1.90267446,71376.0,71375.0,2.54390444]
[1717759037488,1.90267446,71376.0,71375.0,2.43976328]
[1717759037689,1.90267446,71376.0,71375.0,2.54390455]
[1717759038026,1.90267446,71376.0,71375.0,2.43976328]
[1717759039449,1.90267446,71376.0,71375.0,1.78945328]
[1717759039817,2.13007446,71376.0,71375.0,1.83875466]
[1717759040027,2.13007446,71376.0,71375.0,1.83457724]
[1717759040438,2.13007446,71376.0,71375.0,1.93875466]
[1717759040639,2.13007446,71376.0,71375.0,1.82057724]
[1717759040851,2.13007446,71376.0,71375.0,1.80657724]
[1717759041046,2.13007446,71376.0,71375.0,1.82057724]
[1717759041478,2.13007446,71376.0,71375.0,1.92475466]
[1717759041634,2.13007446,71376.0,71375.0,1.94775466]
[1717759042531,2.13007446,71376.0,71375.0,1.96175466]
[1717759042702,1.97997446,71376.0,71375.0,1.96175466]
[1717759043459,1.97997446,71376.0,71375.0,1.96184583]
[1717759044339,1.97997446,71376.0,71375.0,1.85758461]
[1717759045419,1.90267446,71376.0,71375.0,1.85758461]
[1717759047598,1.90267446,71376.0,71375.0,1.86302008]
[1717759050166,1.90267446,71376.0,71375.0,1.55351088]
[1717759050390,1.90267446,71376.0,71375.0,1.54807541]
[1717759050596,1.90267446,71376.0,71375.0,1.86396626]
[1717759052822,1.90267446,71376.0,71375.0,1.84396626]
[1717759053024,1.90267446,71376.0,71375.0,1.86396626]
[1717759054190,1.90267446,71376.0,71375.0,1.79586625]
[1717759054396,1.90267446,71376.0,71375.0,1.86396625]
[1717759054995,1.90353446,71376.0,71375.0,1.86396625]
[1717759055210,1.90353446,71376.0,71375.0,1.67586625]
[1717759055211,2.13183446,71376.0,71375.0,1.67586625]
[1717759055415,2.13183446,71376.0,71375.0,1.77491197]
[1717759055621,2.13183446,71376.0,71375.0,1.77494245]
[1717759055827,2.13183446,71376.0,71375.0,1.22942324]
[1717759056033,2.13183446,71376.0,71375.0,1.14582402]
[1717759056668,2.13183446,71376.0,71375.0,1.20853666]
[1717759057196,2.13183446,71376.0,71375.0,1.01432666]
[1717759057309,2.13183446,71376.0,71375.0,0.65513648]
[1717759057944,2.13183446,71376.0,71375.0,0.64113648]
[1717759058146,2.13183446,71376.0,71375.0,0.61813648]
[1717759059384,2.13183446,71376.0,71375.0,0.67395304]
[1717759059786,2.13183446,71376.0,71375.0,0.63213648]
[1717759061210,2.12534026,71376.0,71375.0,0.63213648]
[1717759061427,2.12534026,71376.0,71375.0,0.67395747]
[1717759065794,2.12534026,71376.0,71375.0,0.67396832]
[1717759068301,2.12534026,71376.0,71375.0,0.63213648]
[1717759076745,2.12534026,71376.0,71375.0,0.67395608]
[1717759077485,2.12534026,71376.0,71375.0,0.67216708]
[1717759079287,2.12534026,71376.0,71375.0,0.17790924]
[1717759079288,2.19344026,71376.0,71375.0,0.17790924]
[1717759079515,2.19344026,71376.0,71375.0,0.18824418]
[1717759079720,2.19344026,71376.0,71375.0,0.167262]
[1717759080140,2.19344026,71376.0,71375.0,0.153262]
[1717759080369,2.19344026,71376.0,71375.0,0.139262]
[1717759080575,2.19344026,71376.0,71375.0,0.167262]
[1717759080979,2.19344026,71376.0,71375.0,0.153262]
[1717759081185,2.19344026,71376.0,71375.0,0.139262]
[1717759081385,2.19344026,71376.0,71375.0,0.167262]
[1717759083429,2.12534026,71376.0,71375.0,0.167262]
[1717759083628,2.19344026,71376.0,71375.0,0.167262]
[1717759084995,2.12534026,71376.0,71375.0,0.167262]
[1717759085200,2.19344026,71376.0,71375.0,0.167262]
[1717759086083,0.2456,71375.0,71371.0,0.02098679]
[1717759086297,0.0681,71372.0,71369.0,0.140116]
[1717759086738,0.2306,71371.0,71370.0,0.01060765]
[1717759087156,0.1644,71371.0,71369.0,0.140116]
[1717759087371,0.1644,71371.0,71370.0,0.01060765]
[1717759087582,0.2325,71371.0,71369.0,0.014]
[1717759087735,0.0681,71370.0,71367.0,0.07222824]
[1717759087947,0.23202446,71369.0,71364.0,0.02098679]
[1717759088148,0.23202446,71369.0,71361.0,0.056081]
[1717759088149,0.1006,71365.0,71361.0,0.056081]
[1717759088322,0.1006,71365.0,71356.0,0.619142]
[1717759088323,0.0681,71362.0,71356.0,0.619142]
[1717759088539,0.02,71365.0,71356.0,0.479]
[1717759088540,0.0681,71359.0,71356.0,0.479]
[1717759089583,0.3129,71359.0,71356.0,0.479]
[1717759090425,0.3149,71359.0,71356.0,0.479]
[1717759091041,0.2468,71359.0,71356.0,0.479]
[1717759091246,0.3149,71359.0,71356.0,0.479]
[1717759091864,0.3149,71359.0,71358.0,0.08221675]
[1717759092303,0.3149,71359.0,71358.0,0.07222824]
[1717759093249,0.2468,71359.0,71358.0,0.07222824]
[1717759093471,0.3149,71359.0,71358.0,0.07222824]
[1717759093704,0.002,71359.0,71358.0,0.21236624]
[1717759094115,0.002,71359.0,71358.0,0.22243919]
[1717759098602,0.2348,71359.0,71358.0,0.22243919]
[1717759098777,0.2348,71359.0,71358.0,0.21236624]
[1717759098983,0.2348,71359.0,71358.0,0.22243138]
[1717759109920,2.13098026,71359.0,71358.0,0.22243138]
[1717759110328,1.89818026,71359.0,71358.0,0.21236624]
[1717759110530,1.89818026,71359.0,71358.0,0.77094224]
[1717759110789,1.89818026,71359.0,71358.0,1.05121824]
[1717759110999,1.89818026,71359.0,71358.0,1.06073849]
[1717759111339,1.89818026,71359.0,71358.0,1.20515742]
[1717759111749,1.89718026,71359.0,71358.0,1.20515742]
[1717759111966,1.89718026,71359.0,71358.0,1.21515742]
[1717759112181,1.89818026,71359.0,71358.0,1.22515008]
[1717759112413,1.89818026,71359.0,71358.0,1.14215008]
[1717759113182,1.89818026,71359.0,71358.0,1.18393252]
[1717759113898,1.89818026,71359.0,71358.0,1.26553252]
[1717759115643,1.89818026,71359.0,71358.0,1.19743252]
[1717759115845,1.89818026,71359.0,71358.0,1.26553252]
[1717759116247,1.89818026,71359.0,71358.0,1.22375008]
[1717759117850,1.89818026,71359.0,71358.0,1.15565008]
[1717759118062,1.89818026,71359.0,71358.0,1.22375008]
[1717759118290,1.89818026,71359.0,71358.0,1.22849729]
[1717759119346,1.89818026,71359.0,71358.0,1.29117096]
[1717759119926,1.89818026,71359.0,71358.0,1.70173825]
[1717759120526,1.89818026,71359.0,71358.0,1.63906458]
[1717759120690,1.89818026,71359.0,71358.0,1.61906458]
[1717759121088,1.89818026,71359.0,71358.0,1.53486458]
[1717759122373,1.89818026,71359.0,71358.0,1.61842947]
[1717759122573,1.89818026,71359.0,71358.0,1.53486458]
[1717759123231,1.89818026,71359.0,71358.0,1.61842947]
[1717759124491,1.89818026,71359.0,71358.0,1.53486458]
[1717759125465,1.89818026,71359.0,71358.0,1.38516458]
[1717759125666,1.89818026,71359.0,71358.0,0.58496541]
[1717759125866,1.89818026,71359.0,71358.0,0.31624182]
[1717759126272,1.89818026,71359.0,71358.0,0.27439812]
[1717759127429,2.12698026,71359.0,71358.0,0.27439812]
[1717759129012,2.12698026,71359.0,71358.0,0.27534412]
[1717759129637,2.12698026,71359.0,71358.0,0.17534412]
[1717759129846,2.19508026,71359.0,71358.0,0.17534412]
[1717759130057,2.19508026,71359.0,71358.0,0.161084]
[1717759132795,2.21508026,71359.0,71358.0,0.161084]
[1717759133010,2.21508026,71359.0,71358.0,0.020946]
[1717759133249,2.36019813,71359.0,71358.0,0.020946]
[1717759133466,2.21508026,71359.0,71358.0,0.020946]
[1717759133894,2.21508026,71359.0,71358.0,0.010946]
[1717759133895,2.21408026,71359.0,71358.0,0.010946]
[1717759134347,2.21408026,71359.0,71358.0,0.024946]
[1717759134697,2.21308026,71359.0,71358.0,0.014946]
[1717759135113,2.21308026,71359.0,71358.0,0.028946]
[1717759135747,2.21308026,71359.0,71358.0,0.014946]
[1717759135966,2.21308026,71359.0,71358.0,0.028946]
[1717759146787,2.21308026,71359.0,71358.0,0.17436291]
[1717759149483,2.21308026,71359.0,71358.0,0.028946]
[1717759150330,2.21308026,71359.0,71358.0,0.1743653]
[1717759150544,2.21308026,71359.0,71358.0,0.028946]
[1717759151142,2.35749919,71359.0,71358.0,0.028946]
[1717759156933,2.12498026,71359.0,71358.0,0.028946]
[1717759157135,2.19308026,71359.0,71358.0,0.028946]
[1717759157514,2.21308026,71359.0,71358.0,0.028946]
[1717759157696,2.19308026,71359.0,71358.0,0.028946]
[1717759158735,2.11568026,71359.0,71358.0,0.028946]
[1717759158941,2.04758026,71359.0,71358.0,0.028946]
[1717759159947,1.89618026,71359.0,71358.0,0.169084]
[1717759160378,1.89618026,71359.0,71358.0,0.249184]
[1717759162847,1.89618026,71359.0,71358.0,0.25944069]
[1717759163764,1.89618026,71359.0,71358.0,0.24544069]
[1717759165462,1.89618026,71359.0,71358.0,0.25944069]
[1717759172614,1.89618026,71359.0,71358.0,0.17934069]
[1717759179252,1.89618026,71359.0,71358.0,0.03920269]
[1717759179253,2.10869919,71359.0,71358.0,0.03920269]
[1717759179458,2.12869919,71359.0,71358.0,0.03920269]
[1717759179661,2.12869919,71359.0,71358.0,0.028946]
[1717759180279,2.12869919,71359.0,71358.0,0.000946]
[1717759180669,2.12869919,71359.0,71358.0,0.028946]
[1717759180875,2.37489919,71359.0,71358.0,0.028946]
[1717759181412,2.35489919,71359.0,71358.0,0.028946]
[1717759183126,2.14238026,71359.0,71358.0,0.028946]
[1717759184303,1.89618026,71359.0,71358.0,0.169084]
[1717759187453,1.89618026,71359.0,71358.0,0.169084]
[1717759188037,1.96428026,71359.0,71358.0,0.169084]
[1717759195043,2.19118026,71359.0,71358.0,0.169084]
[1717759210229,2.19118026,71359.0,71358.0,0.028946]
[1717759211110,2.21118026,71359.0,71358.0,0.028946]
[1717759211330,2.35559919,71359.0,71358.0,0.028946]
[1717759218802,2.33559919,71359.0,71358.0,0.028946]
[1717759218979,2.35559919,71359.0,71358.0,0.028946]
[1717759219568,2.26749919,71359.0,71358.0,0.028946]
[1717759219774,2.33559919,71359.0,71358.0,0.028946]
[1717759219989,2.35559919,71359.0,71358.0,0.028946]
[1717759220584,2.33559919,71359.0,71358.0,0.028946]
[1717759221198,2.35559919,71359.0,71358.0,0.028946]
[1717759221779,2.33559919,71359.0,71358.0,0.028946]
[1717759221993,2.35559919,71359.0,71358.0,0.028946]
[1717759222156,2.33559919,71359.0,71358.0,0.028946]
[1717759222561,2.35559919,71359.0,71358.0,0.028946]
[1717759222762,2.33559919,71359.0,71358.0,0.028946]
[1717759224611,2.35559919,71359.0,71358.0,0.028946]
[1717759229584,2.28749919,71359.0,71358.0,0.028946]
[1717759229817,2.35559919,71359.0,71358.0,0.028946]
[1717759231809,2.28749919,71359.0,71358.0,0.028946]
[1717759232020,2.35559919,71359.0,71358.0,0.028946]
[1717759236543,2.33559919,71359.0,71358.0,0.028946]
[1717759236927,2.35559919,71359.0,71358.0,0.028946]
[1717759237509,2.33559919,71359.0,71358.0,0.028946]
[1717759238625,2.35559919,71359.0,71358.0,0.028946]
[1717759242528,2.33559919,71359.0,71358.0,0.028946]
[1717759242741,2.35559919,71359.0,71358.0,0.028946]
[1717759246259,2.37755254,71359.0,71358.0,0.028946]
[1717759255645,2.28749919,71359.0,71358.0,0.028946]
[1717759255855,2.35559919,71359.0,71358.0,0.028946]
[1717759260416,2.28749919,71359.0,71358.0,0.028946]
[1717759260616,2.35559919,71359.0,71358.0,0.028946]
[1717759265699,2.28749919,71359.0,71358.0,0.028946]
[1717759265906,2.35559919,71359.0,71358.0,0.028946]
[1717759277180,2.28749919,71359.0,71358.0,0.028946]
[1717759277389,2.35559919,71359.0,71358.0,0.028946]
[1717759281481,2.33559919,71359.0,71358.0,0.028946]
[1717759281907,2.35559919,71359.0,71358.0,0.028946]
[1717759283188,2.33559919,71359.0,71358.0,0.028946]
[1717759283831,2.35559919,71359.0,71358.0,0.028946]
[1717759284012,2.33559919,71359.0,71358.0,0.028946]
[1717759284434,2.35559919,71359.0,71358.0,0.028946]
[1717759285846,2.28749919,71359.0,71358.0,0.028946]
[1717759286047,2.35559919,71359.0,71358.0,0.028946]
[1717759288995,2.28749919,71359.0,71358.0,0.028946]
[1717759289201,2.35559919,71359.0,71358.0,0.028946]
[1717759292435,2.33559919,71359.0,71358.0,0.028946]
[1717759292648,2.35559919,71359.0,71358.0,0.028946]
[1717759299076,2.12869919,71359.0,71358.0,0.028946]
[1717759299325,2.10869919,71359.0,71358.0,0.028946]
[1717759299557,2.12869919,71359.0,71358.0,0.028946]
[1717759302549,2.06059919,71359.0,71358.0,0.028946]
[1717759302768,2.12869919,71359.0,71358.0,0.028946]
[1717759307677,2.26883519,71359.0,71358.0,0.028946]
[1717759314445,2.89467519,71359.0,71358.0,0.028946]
[1717759315659,2.82657519,71359.0,71358.0,0.028946]
[1717759315872,2.89467519,71359.0,71358.0,0.028946]
[1717759326922,2.80657519,71359.0,71358.0,0.028946]
[1717759327254,2.89467519,71359.0,71358.0,0.028946]
[1717759332981,3.37494719,71359.0,71358.0,0.028946]
[1717759333213,3.47494719,71359.0,71358.0,0.028946]
[1717759333434,3.73100449,71359.0,71358.0,0.028946]
[1717759333658,4.25126408,71359.0,71358.0,0.028946]
[1717759334088,4.25126408,71359.0,71358.0,0.014946]
[1717759334304,4.48946408,71359.0,71358.0,0.003946]
[1717759334520,4.7186672,71359.0,71358.0,0.003946]
[1717759334730,4.61349571,71359.0,71358.0,0.004946]
[1717759334941,4.46837784,71359.0,71358.0,0.004946]
[1717759335335,4.38545976,71359.0,71358.0,0.004946]
[1717759336221,4.34341919,71359.0,71358.0,0.004946]
[1717759337206,4.38544129,71359.0,71358.0,0.004946]
[1717759338106,4.34341919,71359.0,71358.0,0.004946]
[1717759338329,4.43428062,71359.0,71358.0,0.004946]
[1717759338539,4.39226579,71359.0,71358.0,0.004946]
[1717759338748,4.38543402,71359.0,71358.0,0.00414169]
[1717759338954,4.34341919,71359.0,71358.0,0.00414169]
[1717759340506,4.38542046,71359.0,71358.0,0.00414169]
[1717759342450,4.34341919,71359.0,71358.0,0.00414169]
[1717759342678,4.48853706,71359.0,71358.0,0.00414169]
[1717759343745,4.42043706,71359.0,71358.0,0.00414169]
[1717759344005,4.48853706,71359.0,71358.0,0.00414169]
[1717759345573,4.48853706,71359.0,71358.0,0.00144169]
[1717759345807,4.34341919,71359.0,71358.0,0.00144169]
[1717759348927,0.360165,71344.0,71343.0,0.07222824]
[1717759349145,0.02,71341.0,71340.0,8e-05]
[1717759349347,0.23952852,71341.0,71340.0,8e-05]
[1717759350173,0.23251893,71341.0,71340.0,8e-05]
[1717759350379,0.37268993,71341.0,71340.0,8e-05]
[1717759350626,0.37268993,71341.0,71340.0,0.07230824]
[1717759350862,0.37268993,71341.0,71340.0,0.09873686]
[1717759351081,0.28458993,71341.0,71340.0,0.09873686]
[1717759351282,0.35268993,71341.0,71340.0,0.08473686]
[1717759351709,0.35268993,71341.0,71340.0,0.09873686]
[1717759351937,0.35268993,71341.0,71340.0,0.11273686]
[1717759353425,0.37268993,71341.0,71340.0,0.11273686]
[1717759353856,0.37268993,71341.0,71340.0,0.10030824]
[1717759354067,0.37268993,71341.0,71340.0,0.11273686]
[1717759355959,0.57268993,71341.0,71340.0,0.11273686]
[1717759356167,0.37268993,71341.0,71340.0,0.11273686]
[1717759357331,0.37268993,71341.0,71340.0,0.11368286]
[1717759357996,0.35268993,71341.0,71340.0,0.11368286]
[1717759358312,0.140155,71350.0,71341.0,0.1593]
[1717759358501,0.140154,71350.0,71349.0,0.07222824]
[1717759358719,0.228254,71350.0,71349.0,0.07222824]
[1717759360329,0.228254,71350.0,71349.0,0.07622824]
[1717759361407,0.228254,71350.0,71349.0,0.08122824]
[1717759361724,0.2337,71355.0,71349.0,0.08122824]
[1717759361941,0.0681,71350.0,71349.0,0.08122824]
[1717759362209,0.0681,71350.0,71349.0,0.09367113]
[1717759362672,0.0681,71350.0,71349.0,0.08867113]
[1717759362915,0.0681,71350.0,71349.0,0.09867113]
[1717759363357,0.0681,71350.0,71349.0,0.11067113]
[1717759363863,0.2337,71355.0,71349.0,0.09867113]
[1717759364077,0.0681,71352.0,71349.0,0.09867113]
[1717759364304,0.0681,71352.0,71349.0,0.07222824]
[1717759364509,0.0681,71352.0,71350.0,0.01242649]
[1717759365208,0.2337,71355.0,71350.0,0.01242649]
[1717759365627,0.0681,71351.0,71349.0,0.08522824]
[1717759366058,0.0681,71351.0,71350.0,0.01242649]
[1717759367667,0.0681,71351.0,71350.0,0.03542649]
[1717759368194,0.0681,71351.0,71350.0,0.02342649]
[1717759368394,0.2337,71355.0,71350.0,0.03542649]
[1717759368596,0.0681,71351.0,71350.0,0.03542649]
[1717759368821,0.0681,71351.0,71350.0,0.023]
[1717759369050,0.0681,71351.0,71350.0,0.03542649]
[1717759374790,0.0681,71351.0,71350.0,0.023]
[1717759376884,0.0681,71351.0,71350.0,0.03543566]
[1717759378626,0.0681,71351.0,71350.0,0.19463566]
[1717759380667,0.140147,71354.0,71350.0,0.19463566]
[1717759380878,0.0681,71351.0,71350.0,0.19463566]
[1717759381102,0.0681,71351.0,71350.0,0.1822]
[1717759381325,0.0681,71351.0,71350.0,0.19463566]
[1717759381553,0.0681,71351.0,71350.0,0.17163566]
[1717759381971,0.0681,71351.0,71350.0,0.19463566]
[1717759382411,0.0681,71351.0,71350.0,0.18263566]
[1717759382584,0.06748185,71351.0,71350.0,0.18263566]
[1717759382789,0.06748185,71351.0,71350.0,0.19463566]
[1717759383190,0.06748185,71351.0,71350.0,0.18363566]
[1717759383602,0.06748185,71351.0,71350.0,0.19463566]
[1717759385359,0.06748185,71351.0,71350.0,0.11043566]
[1717759388002,1.96366211,71351.0,71350.0,0.11043566]
[1717759388429,1.96366211,71351.0,71350.0,0.098]
[1717759388909,2.41335091,71351.0,71350.0,0.023]
[1717759389386,2.54853704,71351.0,71350.0,0.023]
[1717759391935,2.78853704,71351.0,71350.0,0.023]
[1717759392560,2.78853704,71351.0,71350.0,0.023946]
[1717759392757,2.78939704,71351.0,71350.0,0.023946]
[1717759394227,2.03719226,71351.0,71350.0,0.023946]
[1717759394423,1.96514026,71351.0,71350.0,0.023946]
[1717759401210,2.26971119,71351.0,71350.0,0.023946]
[1717759401425,2.24971119,71351.0,71350.0,0.023946]
[1717759401701,1.89704026,71351.0,71350.0,0.023946]
[1717759401926,1.89704026,71351.0,71350.0,0.184646]
[1717759403908,1.89704026,71351.0,71350.0,0.19709195]
[1717759405134,1.89704026,71351.0,71350.0,0.33724595]
[1717759405337,1.89704026,71351.0,71350.0,0.71079222]
[1717759405763,1.89704026,71351.0,71350.0,0.50719556]
[1717759405977,1.89704026,71351.0,71350.0,0.59105778]
[1717759406388,1.89704026,71351.0,71350.0,0.58003908]
[1717759406805,1.89704026,71351.0,71350.0,0.59403908]
[1717759407015,1.89704026,71351.0,71350.0,0.58303908]
[1717759407234,1.89704026,71351.0,71350.0,0.66723908]
[1717759407446,1.89704026,71351.0,71350.0,0.58337686]
[1717759407925,1.89704026,71351.0,71350.0,0.67807686]
[1717759408145,1.89704026,71351.0,71350.0,0.69807686]
[1717759408766,1.89704026,71351.0,71350.0,0.61737686]
[1717759409400,1.89704026,71351.0,71350.0,0.59737686]
[1717759410252,1.89704026,71351.0,71350.0,0.63922829]
[1717759411335,1.89704026,71351.0,71350.0,0.55502829]
[1717759411569,1.89704026,71351.0,71350.0,0.24437868]
[1717759412422,1.89704026,71351.0,71350.0,0.18154595]
[1717759412629,1.89704026,71351.0,71350.0,0.04139195]
[1717759430045,1.89704026,71351.0,71350.0,0.18154595]
[1717759443350,1.89704026,71351.0,71350.0,0.22346925]
[1717759448197,1.89704026,71351.0,71350.0,0.18154595]
[1717759453661,1.96514026,71351.0,71350.0,0.04139195]
[1717759453887,2.19844026,71351.0,71350.0,0.028946]
[1717759454109,2.50301119,71351.0,71350.0,0.028946]
[1717759454332,2.50301119,71351.0,71350.0,0.04177712]
[1717759454573,2.50301119,71351.0,71350.0,0.028946]
[1717759455016,2.50301119,71351.0,71350.0,0.014946]
[1717759455240,2.50301119,71351.0,71350.0,0.000946]
[1717759455453,2.50301119,71351.0,71350.0,0.014946]
[1717759455672,2.50301119,71351.0,71350.0,0.026946]
[1717759455883,2.50301119,71351.0,71350.0,0.012946]
[1717759456115,2.50301119,71351.0,71350.0,0.025946]
[1717759456560,2.50301119,71351.0,71350.0,0.012946]
[1717759457430,2.50301119,71351.0,71350.0,0.023946]
[1717759468914,2.48301119,71351.0,71350.0,0.023946]
[1717759469175,1.96514026,71351.0,71350.0,0.023946]
[1717759469397,1.96514026,71351.0,71350.0,0.09617424]
[1717759490133,1.89704026,71351.0,71350.0,0.09617424]
[1717759496386,1.96514026,71351.0,71350.0,0.09617424]
[1717759498480,1.96035925,71351.0,71350.0,0.09617424]
[1717759500415,1.89225925,71351.0,71350.0,0.09617424]
[1717759500633,1.96035925,71351.0,71350.0,0.09617424]
[1717759502594,1.89225925,71351.0,71350.0,0.09617424]
[1717759502812,1.96035925,71351.0,71350.0,0.09617424]
[1717759504614,1.89225925,71351.0,71350.0,0.09617424]
[1717759504822,1.96035925,71351.0,71350.0,0.17247424]
[1717759505467,1.96035925,71351.0,71350.0,0.09617424]
[1717759505904,1.96035925,71351.0,71350.0,0.10901047]
[1717759506932,1.89225925,71351.0,71350.0,0.10901047]
[1717759507197,1.89225925,71351.0,71350.0,0.24916447]
[1717759507403,1.89225925,71351.0,71350.0,0.6509062]
[1717759507523,1.89225925,71351.0,71350.0,1.02753419]
[1717759507720,1.89225925,71351.0,71350.0,1.57794219]
[1717759507930,1.89225925,71351.0,71350.0,1.77794219]
[1717759508144,1.89225925,71351.0,71350.0,2.13026571]
[1717759508357,0.39235925,71351.0,71350.0,2.05242322]
[1717759508569,0.39235925,71351.0,71350.0,1.88094219]
[1717759508779,0.39235925,71351.0,71350.0,1.86694219]
[1717759509014,0.6267,71359.0,71358.0,0.830414]
[1717759509222,0.6267,71359.0,71358.0,1.89719213]
[1717759509429,0.6267,71359.0,71358.0,1.70348299]
[1717759509632,0.6267,71359.0,71358.0,1.93138299]
[1717759509839,0.6267,71359.0,71358.0,1.56093866]
[1717759510165,0.6267,71359.0,71358.0,1.87148225]
[1717759510356,0.6267,71359.0,71358.0,1.92878792]
[1717759510550,0.6267,71359.0,71358.0,1.97148225]
[1717759510755,0.6267,71359.0,71358.0,1.98548225]
[1717759511356,0.6267,71359.0,71358.0,2.26575825]
[1717759512352,0.6267,71359.0,71358.0,2.25175825]
[1717759512749,0.6267,71359.0,71358.0,2.36395825]
[1717759512950,0.6267,71359.0,71358.0,2.27975825]
[1717759513268,0.6267,71359.0,71358.0,2.41325825]
[1717759513652,0.6267,71359.0,71358.0,2.35915825]
[1717759513871,0.6267,71359.0,71358.0,2.42725825]
[1717759514324,0.6267,71359.0,71358.0,2.35915825]
[1717759514448,0.6267,71359.0,71358.0,2.42725825]
[1717759515384,0.6267,71359.0,71358.0,2.51145825]
[1717759516219,0.6267,71359.0,71358.0,2.42725825]
[1717759517096,0.6267,71359.0,71358.0,2.59075825]
[1717759517577,0.6267,71359.0,71358.0,2.53143639]
[1717759518214,0.6267,71359.0,71358.0,2.59075825]
[1717759518422,0.6267,71359.0,71358.0,2.53141457]
[1717759519423,0.6267,71359.0,71358.0,2.42725825]
[1717759520415,0.6267,71359.0,71358.0,2.6726432]
[1717759520906,0.6267,71359.0,71358.0,2.5105432]
[1717759521333,0.51706857,71359.0,71358.0,2.61242325]
[1717759521546,0.43658248,71359.0,71358.0,2.96989925]
[1717759521748,0.00086,71375.0,71374.0,1.392749]
[1717759521957,0.00086,71375.0,71374.0,1.96291537]
[1717759522172,0.00086,71375.0,71374.0,2.28604665]
[1717759522395,0.00086,71376.0,71375.0,1.302735]
[1717759522616,0.00086,71376.0,71375.0,1.63253783]
[1717759522811,0.00086,71376.0,71375.0,1.80972663]
[1717759523224,0.00086,71376.0,71375.0,1.61344273]
[1717759523631,0.00086,71376.0,71375.0,1.54534273]
[1717759523859,0.00086,71376.0,71375.0,1.61344273]
[1717759524069,0.00086,71376.0,71375.0,1.62744273]
[1717759524475,0.00086,71376.0,71375.0,1.55934273]
[1717759524683,0.00086,71376.0,71375.0,1.62744273]
[1717759525732,0.00086,71376.0,71375.0,1.64144273]
[1717759525932,0.00086,71376.0,71375.0,1.84144273]
[1717759526148,0.00086,71379.0,71378.0,0.422]
[1717759526354,0.2383,71400.0,71392.0,0.160071]
[1717759526551,0.2383,71400.0,71392.0,0.27213056]
[1717759526755,0.2383,71400.0,71392.0,0.26224809]
[1717759527348,0.2383,71400.0,71392.0,0.54239109]
[1717759528979,0.2383,71400.0,71392.0,0.71481002]
[1717759530439,0.2383,71400.0,71392.0,0.64671002]
[1717759530687,0.2383,71400.0,71392.0,0.71481002]
[1717759531002,0.2383,71400.0,71392.0,0.99495302]
[1717759531369,0.2383,71400.0,71392.0,0.99494698]
[1717759533839,0.2383,71400.0,71392.0,0.99394698]
[1717759534043,0.2383,71400.0,71392.0,0.98495302]
[1717759534254,0.2383,71400.0,71392.0,0.99394698]
[1717759534880,0.2383,71400.0,71392.0,0.98495302]
[1717759535373,0.23930604,71400.0,71392.0,0.62671002]
[1717759535565,0.00100604,71398.0,71392.0,0.69481002]
[1717759535766,0.23930604,71400.0,71392.0,0.69481002]
[1717759535967,0.2383,71400.0,71392.0,0.69481002]
[1717759536257,0.23930604,71400.0,71392.0,0.69481002]
[1717759536498,0.00100604,71398.0,71392.0,0.69481002]
[1717759536677,0.23930604,71400.0,71392.0,0.69481002]
[1717759538187,0.00100604,71398.0,71392.0,0.69481002]
[1717759538360,0.23930604,71400.0,71392.0,0.69481002]
[1717759539221,0.23930604,71400.0,71392.0,0.71163188]
[1717759540268,0.2383,71400.0,71392.0,0.71163188]
[1717759541191,0.23930604,71400.0,71392.0,0.71163188]
[1717759541405,0.2383,71400.0,71392.0,0.71163188]
[1717759541612,0.23930604,71400.0,71392.0,0.71163188]
[1717759542028,0.2383,71400.0,71392.0,0.71163188]
[1717759542239,0.23930604,71400.0,71392.0,0.71163188]
[1717759545266,0.2383,71400.0,71392.0,0.73062584]
[1717759546267,0.1622,71400.0,71392.0,1.01076884]
[1717759546640,0.00086,71402.0,71392.0,1.27526884]
[1717759546840,0.00086,71402.0,71401.0,0.140054]
[1717759547147,0.00086,71402.0,71401.0,0.208154]
[1717759547351,0.00086,71402.0,71401.0,0.21947356]
[1717759548645,0.00086,71402.0,71401.0,0.15137356]
[1717759549284,0.00086,71402.0,71401.0,0.43148156]
[1717759549493,0.00086,71402.0,71401.0,0.45948156]
[1717759550828,0.00086,71402.0,71401.0,0.46948156]
[1717759551030,0.00086,71402.0,71401.0,0.45948156]
[1717759551910,0.00086,71402.0,71401.0,0.46948156]
[1717759552359,0.00086,71402.0,71401.0,0.8422767]
[1717759552564,0.00086,71402.0,71401.0,0.53188676]
[1717759552782,0.00086,71402.0,71401.0,0.56388072]
[1717759553218,0.00086,71402.0,71401.0,1.29879634]
[1717759553442,0.00086,71402.0,71401.0,1.52487494]
[1717759553656,0.00086,71402.0,71401.0,1.42059114]
[1717759554501,0.00086,71402.0,71401.0,1.47469114]
[1717759554720,0.00086,71402.0,71401.0,1.39049114]
[1717759555146,0.00086,71402.0,71401.0,1.40449114]
[1717759555603,0.00086,71402.0,71401.0,1.37649114]
[1717759555812,0.00086,71402.0,71401.0,1.40449114]
[1717759556251,0.00086,71402.0,71401.0,1.32739718]
[1717759556463,0.00086,71402.0,71401.0,1.40449114]
[1717759557711,0.00086,71402.0,71401.0,1.33639114]
[1717759557913,0.00086,71402.0,71401.0,1.40449114]
[1717759559226,0.00086,71402.0,71401.0,1.56619114]
[1717759559475,0.00086,71402.0,71401.0,1.94629914]
[1717759559894,0.00086,71402.0,71401.0,2.14829914]
[1717759560352,0.00863,71412.0,71411.0,0.62909596]
[1717759560568,0.00863,71412.0,71411.0,1.17500358]
[1717759560820,0.00863,71412.0,71411.0,1.18626057]